bitfinex/quotes_ETHUSD_20230703
["timestamp","ask_amount","ask_price","bid_price","bid_amount"]
[1688357657921,1.13943084,1948.3,1948.2,12.83235]
[1688357658088,1.13943084,1948.3,1948.2,14.672237]
[1688357662842,1.13943084,1948.3,1948.2,12.83235]
[1688357667539,1.13943084,1948.3,1948.2,13.24614748]
[1688357670304,0.69079452,1948.3,1948.2,13.24614748]
[1688357674899,0.15419863,1948.3,1948.2,13.24614748]
[1688357677283,2.44659589,1948.4,1948.2,13.24614748]
[1688357677799,2.44659589,1948.4,1948.2,23.99120239]
[1688357677800,1.91,1948.4,1948.2,23.99120239]
[1688357678508,1.91,1948.4,1948.2,23.07620239]
[1688357679598,1.91,1948.4,1948.2,23.99920239]
[1688357682405,1.91,1948.4,1948.3,3.0]
[1688357682605,1.91,1948.4,1948.3,15.83167]
[1688357682807,1.91,1948.4,1948.3,19.30146324]
[1688357685488,1.91,1948.4,1948.3,15.83167]
[1688357686217,1.91,1948.4,1948.3,3.0]
[1688357686218,2.59903333,1948.4,1948.3,3.0]
[1688357686411,2.90238517,1948.4,1948.2,8.54659748]
[1688357686710,0.68863269,1948.3,1948.2,13.67953748]
[1688357686879,3.25149275,1948.4,1948.2,13.67953748]
[1688357687079,3.25149275,1948.4,1948.2,16.24600748]
[1688357687511,0.53619525,1948.3,1948.2,16.24600748]
[1688357687710,0.68866793,1948.3,1948.2,15.83221]
[1688357687912,3.48866793,1948.3,1948.2,15.83221]
[1688357691037,3.33619525,1948.3,1948.2,15.83221]
[1688357691338,3.45667964,1948.3,1948.2,15.83221]
[1688357695540,4.26197714,1948.3,1948.2,15.83221]
[1688357696044,3.45667964,1948.3,1948.2,15.83221]
[1688357697045,4.26197714,1948.3,1948.2,15.83221]
[1688357697248,3.45667964,1948.3,1948.2,15.83221]
[1688357697454,3.72578189,1948.3,1948.2,15.83221]
[1688357701659,3.72578189,1948.3,1948.2,17.71377964]
[1688357702355,3.72578189,1948.3,1948.2,17.61377964]
[1688357704228,3.72578189,1948.3,1948.2,15.73221]
[1688357705495,3.72578189,1948.3,1948.2,13.16574]
[1688357705695,3.75651114,1948.3,1948.2,13.16574]
[1688357705996,3.75651114,1948.3,1948.2,15.73221]
[1688357706291,3.72578189,1948.3,1948.2,15.73221]
[1688357707063,3.72578189,1948.3,1948.1,5.54994636]
[1688357707064,4.33784399,1948.3,1948.1,5.54994636]
[1688357707258,0.97797238,1948.2,1948.1,5.54994636]
[1688357707470,0.97797238,1948.2,1948.1,13.2662]
[1688357708482,0.97797238,1948.2,1948.1,15.8328]
[1688357708793,0.92587288,1948.2,1948.1,15.8328]
[1688357710161,0.68585844,1948.2,1948.1,15.8328]
[1688357710391,0.65727421,1948.2,1948.1,15.8328]
[1688357711673,3.33686681,1948.3,1948.1,23.78307788]
[1688357711876,2.8,1948.3,1948.2,15.83235]
[1688357712183,3.33686681,1948.3,1948.2,15.83235]
[1688357712523,3.33686681,1948.3,1948.2,24.96387787]
[1688357712524,0.18319,1948.3,1948.2,24.96387787]
[1688357712659,1.91,1948.4,1948.2,29.92626544]
[1688357712864,1.91,1948.4,1948.3,21.70345816]
[1688357713065,1.91,1948.4,1948.3,24.70345816]
[1688357713919,1.91,1948.4,1948.3,16.75467]
[1688357714105,1.91,1948.4,1948.3,15.83167]
[1688357714279,1.91,1948.4,1948.3,18.72481676]
[1688357717620,1.91,1948.4,1948.3,27.59660492]
[1688357718201,1.91,1948.4,1948.3,28.07660492]
[1688357718727,1.91,1948.4,1948.3,28.34434463]
[1688357719424,0.53686681,1948.8,1948.3,28.34434463]
[1688357719576,0.53686681,1948.9,1948.7,0.923]
[1688357719775,0.53686681,1948.9,1948.8,15.39408]
[1688357719983,0.53686681,1948.9,1948.8,18.39408]
[1688357720330,0.53686681,1948.9,1948.8,32.39722816]
[1688357720683,0.53686681,1948.9,1948.8,31.47422816]
[1688357720878,0.53686681,1948.9,1948.8,21.63300282]
[1688357721084,0.53686681,1948.9,1948.8,18.39408]
[1688357721085,1.3422553,1948.9,1948.8,18.39408]
[1688357721479,0.53686681,1948.9,1948.8,18.39408]
[1688357722904,1.3422553,1948.9,1948.8,15.8284]
[1688357723139,0.53609502,1948.9,1948.8,15.8284]
[1688357723630,0.03609502,1948.9,1948.8,15.8284]
[1688357725903,0.80538849,1949.0,1948.8,15.8284]
[1688357726204,0.80538849,1949.0,1948.9,3.0]
[1688357726409,0.80538849,1949.0,1948.8,13.26272]
[1688357727131,2.79407343,1949.0,1948.8,8.13136]
[1688357727332,1.72038849,1949.0,1948.8,8.13136]
[1688357728337,1.72038849,1949.0,1948.8,16.24031278]
[1688357728941,1.72038849,1949.0,1948.8,3.41191278]
[1688357729089,1.72038849,1949.0,1948.6,8.13174]
[1688357729090,1.72838849,1948.9,1948.6,8.13174]
[1688357729289,0.923,1948.8,1948.7,8.13139]
[1688357729483,0.923,1948.8,1948.7,13.26301]
[1688357729898,0.923,1948.8,1948.7,8.13139]
[1688357731104,0.80538849,1948.9,1948.7,8.13139]
[1688357732259,0.80538849,1948.9,1948.7,3.0]
[1688357732923,0.00378952,1948.8,1948.7,3.0]
[1688357733114,0.00378952,1948.8,1948.7,8.13155]
[1688357733861,0.53940154,1948.8,1948.7,8.13155]
[1688357734549,1.46240154,1948.8,1948.5,8.13204]
[1688357734703,2.26779003,1948.8,1948.6,3.0]
[1688357734902,0.53561202,1948.7,1948.6,3.0]
[1688357735811,0.53938972,1948.7,1948.6,3.0]
[1688357735928,0.56666013,1948.7,1948.6,3.0]
[1688357736857,0.53938972,1948.7,1948.6,2.99425673]
[1688357737422,0.56603515,1948.7,1948.6,2.99425673]
[1688357737623,0.53938972,1948.7,1948.6,2.99425673]
[1688357737924,0.53938972,1948.7,1948.3,5.13256]
[1688357737925,1.7522207,1948.7,1948.3,5.13256]
[1688357738158,1.7522207,1948.7,1948.2,5.13288]
[1688357738159,2.26399596,1948.6,1948.2,5.13288]
[1688357738338,0.97487819,1948.5,1948.2,5.13286]
[1688357738541,0.58748566,1948.5,1948.2,10.2658]
[1688357738829,0.59124171,1948.5,1948.2,13.24362423]
[1688357739144,0.59124171,1948.5,1948.2,10.67715423]
[1688357739352,3.15002987,1948.5,1948.2,5.54421423]
[1688357739688,1.45860747,1948.4,1948.1,3.0]
[1688357739978,0.05187819,1948.3,1948.1,8.1332]
[1688357740320,0.05187819,1948.3,1948.1,8.54327766]
[1688357740521,0.05187819,1948.3,1948.1,13.67647766]
[1688357740724,0.05187819,1948.3,1948.1,8.54327766]
[1688357741061,0.05187819,1948.3,1948.1,3.41007766]
[1688357741424,0.01711186,1948.2,1947.9,5.13365]
[1688357741625,0.01711186,1948.2,1947.8,5.13383]
[1688357741626,2.55878816,1948.1,1947.8,5.13383]
[1688357741851,2.55878816,1948.1,1947.9,5.13368]
[1688357742366,2.55878816,1948.1,1947.9,10.26741]
[1688357742764,2.55878816,1948.1,1947.9,12.83427]
[1688357743527,8.61500816,1948.1,1947.8,5.13389]
[1688357743869,3.48178816,1948.1,1947.8,10.26784]
[1688357744368,2.55878816,1948.1,1947.8,12.83483]
[1688357744527,2.55878816,1948.1,1947.8,10.26784]
[1688357745057,3.48178816,1948.1,1947.8,10.26784]
[1688357745640,3.48178816,1948.1,1947.7,5.54779749]
[1688357745641,0.923,1948.0,1947.7,5.54779749]
[1688357745855,8.61531816,1948.0,1947.6,5.13442]
[1688357746134,0.918,1947.9,1947.6,10.26891]
[1688357746347,0.918,1947.9,1947.6,5.13439]
[1688357746533,0.918,1947.9,1947.6,10.26891]
[1688357747602,7.39,1947.5,1947.1,0.1296557]
[1688357747788,15.39653816,1947.4,1947.1,0.1296557]
[1688357748069,15.39653816,1947.4,1946.9,5.13623]
[1688357748278,15.39653816,1947.4,1946.9,10.2726]
[1688357748279,0.923,1947.2,1946.9,10.2726]
[1688357748494,5.13563,1947.2,1946.9,10.2726]
[1688357748886,2.55878816,1947.1,1946.9,5.13629]
[1688357749308,2.55878816,1947.1,1946.9,10.27266]
[1688357749492,6.05341,1947.3,1946.9,10.27266]
[1688357749803,2.55878816,1947.2,1946.9,10.27266]
[1688357750707,11.19324,1947.4,1946.9,13.10857971]
[1688357750900,12.82902816,1947.4,1946.9,14.71665997]
[1688357751097,7.69384816,1947.4,1946.9,14.71665997]
[1688357751300,18.26497186,1947.5,1946.9,14.71665997]
[1688357751301,16.2478,1947.5,1946.9,14.71665997]
[1688357751488,10.19,1947.5,1947.0,0.26773971]
[1688357751694,10.19,1947.5,1947.1,12.83927]
[1688357752012,7.13384,1947.9,1947.2,0.26773971]
[1688357752209,9.69262816,1947.9,1947.4,12.83711]
[1688357752421,5.13405,1947.8,1947.4,12.83711]
[1688357752846,6.05205,1947.8,1947.4,12.83711]
[1688357753283,11.1861,1947.8,1947.4,12.83711]
[1688357753486,10.2681,1947.8,1947.4,12.83711]
[1688357753688,10.61562816,1947.9,1947.4,12.83711]
[1688357753918,12.82688816,1947.8,1947.4,11.553391]
[1688357754496,2.55878816,1947.7,1947.4,10.26968]
[1688357754701,15.6581,1947.8,1947.4,10.26968]
[1688357754702,10.26819,1947.8,1947.4,10.26968]
[1688357755033,12.82697816,1947.8,1947.4,10.26968]
[1688357755557,12.82697816,1947.8,1947.4,5.13484]
[1688357755827,12.82697816,1947.8,1947.3,10.27037]
[1688357756184,2.55878816,1947.8,1947.3,10.27037]
[1688357756391,7.69279816,1947.8,1947.3,12.83802]
[1688357757535,7.69279816,1947.8,1947.2,5.13544]
[1688357757536,2.0,1947.6,1947.2,5.13544]
[1688357757736,0.923,1947.8,1947.3,10.27058]
[1688357758026,2.0,1947.7,1947.3,10.27058]
[1688357758821,2.56694,1947.9,1947.3,12.83823]
[1688357758822,7.13383,1947.9,1947.3,12.83823]
[1688357759030,7.69283816,1947.8,1947.3,12.83823]
[1688357759243,7.69283816,1947.8,1947.3,14.470621]
[1688357761730,13.08283816,1947.8,1947.1,5.6867]
[1688357761894,20.78391816,1947.8,1947.3,5.13517]
[1688357762307,20.78391816,1947.8,1947.3,10.27048]
[1688357763208,20.78391816,1947.8,1947.3,12.83813]
[1688357763831,12.82692816,1947.8,1947.3,12.83813]
[1688357764059,7.69283816,1947.8,1947.3,12.83813]
[1688357764830,17.82684,1948.0,1947.3,12.83813]
[1688357764831,11.113,1948.0,1947.3,12.83813]
[1688357765003,2.55878816,1947.9,1947.5,12.83642]
[1688357765633,4.55878816,1947.9,1947.5,12.83642]
[1688357765827,9.69254816,1947.9,1947.5,12.83642]
[1688357767658,2.55878816,1947.9,1947.5,12.83642]
[1688357767841,7.69254816,1947.9,1947.5,12.83642]
[1688357768154,7.69254816,1947.9,1947.5,15.43672]
[1688357769067,9.69254816,1947.9,1947.5,12.83674]
[1688357769822,2.0,1947.9,1947.5,12.83674]
[1688357770028,10.19,1948.0,1947.5,12.83674]
[1688357770585,2.0,1948.3,1947.5,12.83674]
[1688357770868,2.0,1948.3,1947.6,0.923]
[1688357770869,7.69189816,1948.2,1947.6,0.923]
[1688357771068,7.69189816,1948.2,1947.7,12.83522]
[1688357771069,5.13321,1948.1,1947.7,12.83522]
[1688357771435,5.13321,1948.1,1947.7,15.59422]
[1688357771770,36.22785747,1948.5,1947.9,0.923]
[1688357772068,2.55878816,1948.4,1948.0,12.83323]
[1688357772419,2.55878816,1948.4,1948.0,14.208853]
[1688357772921,2.0,1948.5,1948.0,14.208853]
[1688357773114,4.55878816,1948.5,1948.0,14.208853]
[1688357773530,4.55878816,1948.5,1948.2,12.83222]
[1688357773531,2.55878816,1948.5,1948.2,12.83222]
[1688357773730,10.19,1948.6,1948.2,12.83222]
[1688357773977,10.19,1948.6,1948.2,14.207742]
[1688357774478,10.19,1948.6,1948.2,16.776542]
[1688357775273,10.19,1948.6,1948.4,12.83102]
[1688357780085,0.53560747,1948.9,1948.4,13.75402]
[1688357780285,0.53560747,1948.9,1948.6,12.82957]
[1688357780491,1.34099596,1949.0,1948.6,12.82957]
[1688357780656,3.89978412,1949.0,1948.6,12.82957]
[1688357781082,3.89978412,1949.0,1948.6,15.44897]
[1688357781281,0.53560747,1948.9,1948.6,15.44897]
[1688357781846,0.53560747,1948.9,1948.6,17.1314072]
[1688357782053,3.36417665,1949.0,1948.6,17.1314072]
[1688357782054,3.09439563,1949.0,1948.6,17.1314072]
[1688357782269,2.84199539,1949.1,1948.7,0.923]
[1688357782270,0.57221437,1949.1,1948.7,0.923]
[1688357782552,0.57221437,1949.1,1948.8,12.82827]
[1688357782553,0.0366069,1949.1,1948.8,12.82827]
[1688357782738,0.00423576,1949.0,1948.8,12.82827]
[1688357782939,0.00423576,1949.0,1948.8,14.111097]
[1688357783141,0.00423576,1949.0,1948.8,5.13131]
[1688357783899,5.70287437,1949.1,1948.8,5.13131]
[1688357784045,5.70287437,1949.1,1948.8,10.26267]
[1688357784903,0.00376102,1949.0,1948.8,10.26267]
[1688357786018,0.00376102,1949.0,1948.8,12.82835]
[1688357787193,0.00376102,1949.0,1948.8,14.111185]
[1688357787793,0.0366069,1949.1,1948.8,14.111185]
[1688357788089,0.0366069,1949.1,1948.8,12.82835]
[1688357788802,0.00375353,1949.0,1948.8,12.82835]
[1688357789005,2.56254169,1949.0,1948.8,5.13131]
[1688357789299,0.00375353,1949.0,1948.8,10.26267]
[1688357789478,0.00375353,1949.0,1948.8,12.82835]
[1688357790666,0.00375353,1949.0,1948.8,14.111185]
[1688357792898,0.0366069,1949.1,1948.8,14.111185]
[1688357793701,0.00375353,1949.0,1948.8,14.111185]
[1688357794782,0.0366069,1949.1,1948.8,14.111185]
[1688357795713,0.00375287,1949.0,1948.8,14.111185]
[1688357795909,0.00375287,1949.0,1948.9,1.4111185]
[1688357796082,0.00375287,1949.0,1948.9,11.6732985]
[1688357796995,0.00375287,1949.0,1948.9,14.2388385]
[1688357797519,0.00375287,1949.0,1948.9,18.5208385]
[1688357802897,0.00375287,1949.0,1948.9,17.2388385]
[1688357803837,0.00375287,1949.0,1948.9,18.5308385]
[1688357805843,0.0366069,1949.1,1948.9,18.5308385]
[1688357806056,0.0366069,1949.1,1949.0,4.85308385]
[1688357806354,0.0366069,1949.1,1949.0,17.68015385]
[1688357806704,0.04001103,1949.1,1949.0,17.68015385]
[1688357808258,0.04001103,1949.1,1949.0,9.98391385]
[1688357808411,0.04001103,1949.1,1949.0,17.68015385]
[1688357808747,0.04001103,1949.1,1949.0,15.82707]
[1688357810636,0.04001103,1949.1,1949.0,13.26166]
[1688357810837,0.04001103,1949.1,1949.0,15.82707]
[1688357815342,0.04001103,1949.1,1949.0,12.82707]
[1688357815554,0.04001103,1949.1,1948.7,8.13148]
[1688357815555,5.17058103,1949.1,1948.7,8.13148]
[1688357815847,5.17058103,1949.1,1948.8,5.13133]
[1688357815848,0.04001103,1949.1,1948.8,5.13133]
[1688357816046,0.04001103,1949.1,1948.8,10.26269]
[1688357816954,0.07181794,1949.1,1948.8,10.26269]
[1688357817149,0.07181794,1949.1,1948.8,12.82837]
[1688357817363,0.60742541,1949.1,1948.8,12.82837]
[1688357817571,0.5756185,1949.1,1948.8,12.82837]
[1688357817753,0.02721062,1949.0,1948.8,12.82837]
[1688357818471,0.60282912,1949.1,1948.8,12.82837]
[1688357818765,0.59942499,1949.1,1948.8,12.82837]
[1688357819265,0.57221437,1949.1,1948.8,12.82837]
[1688357819490,0.03273393,1949.0,1948.8,12.82837]
[1688357819628,0.5683414,1949.0,1948.8,12.82837]
[1688357820467,0.5683414,1949.0,1948.8,10.26269]
[1688357822663,3.36417665,1948.9,1948.5,5.13203]
[1688357822972,3.36417665,1948.9,1948.5,5.13212]
[1688357822973,5.71971447,1948.8,1948.5,5.13212]
[1688357823160,8.27850263,1948.8,1948.4,10.26458]
[1688357823360,8.27850263,1948.8,1948.5,5.13212]
[1688357823568,0.0520995,1948.6,1948.5,10.26427]
[1688357824782,0.0520995,1948.6,1948.5,12.83034]
[1688357826771,0.0520995,1948.6,1948.5,10.26427]
[1688357827106,0.0520995,1948.6,1948.5,5.13212]
[1688357827401,0.58831447,1948.6,1948.5,5.13212]
[1688357831707,0.58831447,1948.6,1948.5,10.26427]
[1688357834372,0.0520995,1948.6,1948.5,10.26427]
[1688357834578,0.0520995,1948.6,1948.5,14.15432163]
[1688357837417,0.0520995,1948.6,1948.5,12.83034]
[1688357837823,0.53621497,1948.7,1948.5,12.83034]
[1688357838006,0.03386662,1948.6,1948.5,12.83034]
[1688357839276,0.03386662,1948.6,1948.5,5.13212]
[1688357839479,0.57008159,1948.6,1948.4,5.54164626]
[1688357839831,0.57008159,1948.6,1948.4,10.67405626]
[1688357840177,0.03386662,1948.6,1948.4,10.67405626]
[1688357840725,0.57008159,1948.7,1948.4,10.67405626]
[1688357840944,0.57008159,1948.7,1948.4,5.54164626]
[1688357840945,9.06587824,1948.7,1948.4,5.54164626]
[1688357841241,8.26048975,1948.7,1948.4,10.67405626]
[1688357841598,0.57008159,1948.7,1948.4,13.24025626]
[1688357841937,0.53621497,1948.7,1948.4,15.38701289]
[1688357845648,0.03299411,1948.6,1948.4,15.38701289]
[1688357846706,0.53621497,1948.7,1948.4,15.38701289]
[1688357846906,0.53621497,1948.7,1948.4,13.24025626]
[1688357847234,0.53621497,1948.7,1948.4,14.15525626]
[1688357847430,0.02816165,1948.6,1948.5,0.914]
[1688357847632,0.02816165,1948.6,1948.5,13.74437]
[1688357847812,0.80538849,1948.8,1948.5,18.41636563]
[1688357847813,0.53621497,1948.8,1948.5,18.41636563]
[1688357848010,0.53621497,1948.9,1948.6,3.0]
[1688357848227,0.53621497,1948.9,1948.7,12.82905]
[1688357850620,0.53621497,1949.0,1948.7,12.82905]
[1688357850946,1.34160346,1949.0,1948.9,10.26218]
[1688357851146,1.34160346,1949.0,1948.9,12.82772]
[1688357851336,0.53621497,1949.0,1948.9,12.82772]
[1688357851648,1.34160346,1949.0,1948.9,12.82772]
[1688357853321,0.80538849,1949.0,1948.9,12.82772]
[1688357853737,1.34196942,1949.0,1948.9,12.82772]
[1688357856256,0.80538849,1949.0,1948.9,12.82772]
[1688357856726,1.34198401,1949.0,1948.9,12.82772]
[1688357858251,1.34198401,1949.0,1948.9,14.2387825]
[1688357859608,1.34198401,1949.0,1948.9,12.82772]
[1688357860961,0.80538849,1949.0,1948.9,12.82772]
[1688357861366,1.34197573,1949.0,1948.9,12.82772]
[1688357863386,0.53658724,1949.0,1948.9,12.82772]
[1688357863551,1.34197573,1949.0,1948.9,12.82772]
[1688357864494,1.34197573,1949.0,1948.9,14.4953445]
[1688357864788,0.57319414,1949.1,1948.9,14.40560892]
[1688357865282,1.37858263,1949.1,1948.9,14.40560892]
[1688357865480,0.57319414,1949.1,1948.9,14.40560892]
[1688357865781,0.53658724,1949.0,1948.9,14.40560892]
[1688357866281,1.37858263,1949.1,1948.9,14.40560892]
[1688357866432,1.37858263,1949.1,1948.9,12.73798442]
[1688357869376,0.57319414,1949.1,1948.9,12.73798442]
[1688357870080,0.57319414,1949.1,1949.0,0.918]
[1688357870239,0.0366069,1949.1,1949.0,16.74507]
[1688357870442,0.57319414,1949.1,1949.0,19.18026644]
[1688357871167,0.57319414,1949.1,1949.0,18.26226644]
[1688357871383,0.0366069,1949.1,1949.0,18.26226644]
[1688357874678,0.0366069,1949.1,1949.0,15.82707]
[1688357876353,0.0366069,1949.1,1949.0,16.74207]
[1688357877199,0.0366069,1949.1,1949.0,15.82707]
[1688357882407,0.0366069,1949.1,1949.0,13.26166]
[1688357882861,0.06798464,1949.1,1949.0,13.26166]
[1688357883194,0.06798464,1949.1,1949.0,15.82707]
[1688357883401,0.0366069,1949.1,1949.0,15.82707]
[1688357884410,0.0366069,1949.1,1948.7,2.6366]
[1688357884411,6.50915263,1949.1,1948.7,2.6366]
[1688357884624,0.0520995,1949.0,1948.7,5.13162]
[1688357884903,0.0520995,1949.0,1948.6,0.12622475]
[1688357884904,6.64256674,1949.0,1948.6,10.26345]
[1688357885201,1.51168674,1949.0,1948.6,10.26345]
[1688357885367,0.53658724,1948.9,1948.6,10.26345]
[1688357885730,0.58868674,1948.9,1948.6,10.26345]
[1688357885956,0.58868674,1948.9,1948.6,12.82939]
[1688357886228,0.58868674,1948.9,1948.6,10.26345]
[1688357886798,0.58868674,1948.9,1948.6,5.13169]
[1688357887419,0.58868674,1948.9,1948.6,10.26357]
[1688357888134,0.58868674,1948.9,1948.6,10.67125332]
[1688357889120,0.58868674,1948.9,1948.6,13.23719332]
[1688357892954,0.0520995,1948.9,1948.8,0.923]
[1688357893118,0.57319414,1949.1,1948.8,16.31708]
[1688357893302,0.57319414,1949.1,1948.9,1.631708]
[1688357893508,0.57319414,1949.1,1949.0,12.82707]
[1688357904691,0.57319414,1949.1,1949.0,5.13083]
[1688357904692,0.84199539,1949.1,1949.0,5.13083]
[1688357904847,0.84199539,1949.1,1948.9,13.26191]
[1688357905042,0.56621932,1949.0,1948.9,13.26191]
[1688357906322,3.12500748,1949.0,1948.8,5.13118]
[1688357906523,0.53700201,1948.9,1948.8,5.13118]
[1688357906760,0.53700201,1948.9,1948.8,10.26254]
[1688357907726,0.56841343,1948.9,1948.8,12.82822]
[1688357908566,0.53700201,1948.9,1948.8,12.82822]
[1688357908776,0.5660388,1948.9,1948.8,12.82822]
[1688357909275,0.53700201,1948.9,1948.8,12.82822]
[1688357909590,0.56554838,1948.9,1948.8,12.82822]
[1688357911471,0.56554838,1948.9,1948.8,10.26254]
[1688357912243,0.56360667,1948.9,1948.8,10.26254]
[1688357912398,0.56360667,1948.9,1948.8,5.13118]
[1688357912548,1.36899516,1948.9,1948.7,3.41309701]
[1688357912752,0.53700201,1948.8,1948.7,5.13159]
[1688357913001,0.53700201,1948.8,1948.7,10.26321]
[1688357914550,0.53700201,1948.8,1948.7,12.82902]
[1688357914858,1.3423905,1948.9,1948.7,12.82902]
[1688357915058,0.5641108,1948.9,1948.7,12.82902]
[1688357915795,0.53700201,1948.9,1948.7,12.82902]
[1688357916039,0.57024798,1948.9,1948.7,12.82902]
[1688357916457,0.53700201,1948.9,1948.7,12.82902]
[1688357916727,0.57663626,1948.9,1948.7,12.82902]
[1688357920293,0.53700201,1948.9,1948.7,12.82902]
[1688357920492,0.5725205,1948.9,1948.7,12.82902]
[1688357927327,0.5725205,1948.9,1948.7,12.57483]
[1688357927956,0.53700201,1948.9,1948.7,12.57483]
[1688357928133,0.02854851,1948.8,1948.7,12.57483]
[1688357928532,0.53700201,1948.9,1948.7,12.57483]
[1688357928728,0.02786658,1948.8,1948.7,12.57483]
[1688357929058,0.53700201,1948.9,1948.7,12.57483]
[1688357929244,0.03019804,1948.8,1948.7,12.57483]
[1688357929740,0.53700201,1948.9,1948.7,14.13063285]
[1688357931846,0.53700201,1948.9,1948.7,12.57483]
[1688357932049,0.02994292,1948.8,1948.7,12.57483]
[1688357933658,0.02994292,1948.8,1948.7,10.26324]
[1688357945282,0.56694493,1948.8,1948.7,10.26324]
[1688357950183,0.02994292,1948.8,1948.7,13.74305]
[1688357950490,0.53700201,1948.9,1948.7,18.41567685]
[1688357950834,0.53700201,1948.9,1948.7,17.50167685]
[1688357951250,0.53700201,1948.9,1948.7,20.14207685]
[1688357956830,0.53700201,1948.9,1948.7,20.40981656]
[1688357957109,0.53700201,1948.9,1948.8,15.8284]
[1688357958349,0.53700201,1948.9,1948.8,16.6026073]
[1688357960086,3.2323905,1949.0,1948.8,16.6026073]
[1688357961908,2.42700201,1949.0,1948.8,16.6026073]
[1688357962064,3.2323905,1949.0,1948.8,16.6026073]
[1688357962383,3.2323905,1949.0,1948.8,15.8284]
[1688357963198,2.42700201,1949.0,1948.8,15.8284]
[1688357971626,2.42700201,1949.0,1948.8,16.23994732]
[1688357979029,2.42291566,1949.0,1948.8,16.23994732]
[1688357981322,3.22830415,1949.0,1948.8,16.23994732]
[1688357981505,3.22830415,1949.0,1948.8,19.09176171]
[1688357984044,0.53700201,1948.9,1948.8,19.09176171]
[1688357984540,3.22830415,1949.0,1948.8,19.09176171]
[1688357985044,3.22830415,1949.0,1948.8,13.67426732]
[1688357985345,0.58236656,1948.9,1948.8,13.67426732]
[1688357986653,0.58236656,1948.9,1948.8,16.23994732]
[1688357988140,0.58236656,1948.9,1948.8,13.67426732]
[1688357992178,0.58236656,1948.9,1948.8,16.23994732]
[1688357996189,0.58236656,1948.9,1948.8,18.38456105]
[1688357996190,0.04536455,1948.9,1948.8,18.38456105]
[1688357996339,2.42291566,1949.0,1948.8,22.13408892]
[1688357997061,1.88591365,1949.0,1948.8,22.13408892]
[1688357998550,1.88591365,1949.0,1948.9,1.19073971]
[1688357998782,1.88591365,1949.0,1948.9,14.01845971]
[1688357999085,1.88591365,1949.0,1948.9,20.0015046]
[1688358001660,1.88591365,1949.0,1948.9,20.4815046]
[1688358006700,1.88591365,1949.0,1948.9,25.8795046]
[1688358006864,0.40886018,1949.0,1948.9,28.43829276]
[1688358007072,0.40886018,1949.0,1948.9,29.33009418]
[1688358007292,0.40886018,1949.0,1948.9,31.16776763]
[1688358007904,0.40886018,1949.0,1948.9,29.83009418]
[1688358008053,0.40886018,1949.0,1948.9,29.9689444]
[1688358011706,1.3423905,1949.7,1949.1,0.5]
[1688358011853,1.07368494,1949.8,1949.4,20.51891]
[1688358011854,0.53700201,1949.8,1949.4,20.51891]
[1688358012199,0.53700201,1949.8,1949.6,15.38774]
[1688358012701,0.53700201,1949.8,1949.7,3.0]
[1688358013007,0.53700201,1949.8,1949.7,15.82247]
[1688358013657,0.53700201,1949.9,1949.7,15.82247]
[1688358018105,0.53700201,1950.0,1949.7,15.82247]
[1688358021290,0.53700201,1950.0,1949.5,2.7134]
[1688358021291,0.53700201,1949.9,1949.5,2.7134]
[1688358021616,1.46000201,1949.8,1949.5,0.41867596]
[1688358021914,0.923,1949.6,1949.4,3.0]
[1688358022469,0.923,1949.6,1949.4,8.12976]
[1688358023211,0.923,1949.6,1949.4,13.25954]
[1688358023601,0.923,1949.6,1949.4,8.12976]
[1688358024374,0.923,1949.6,1949.4,13.25954]
[1688358026311,0.923,1949.6,1949.4,8.12976]
[1688358026990,0.923,1949.5,1949.3,5.1299]
[1688358027194,0.923,1949.4,1949.1,5.54631774]
[1688358027379,0.0520995,1949.3,1949.1,0.41587774]
[1688358027574,0.0520995,1949.1,1948.9,5.13086]
[1688358027777,0.0520995,1949.1,1949.0,5.13075]
[1688358028112,0.0520995,1949.1,1949.0,10.26158]
[1688358028318,0.0520995,1949.1,1949.0,5.13075]
[1688358028484,0.923,1949.2,1949.0,8.13083]
[1688358029142,0.923,1949.2,1949.0,3.0]
[1688358029310,0.923,1949.2,1949.0,8.13075]
[1688358030043,0.02823258,1949.1,1949.0,8.13075]
[1688358030549,0.923,1949.2,1949.0,3.0]
[1688358030703,0.923,1949.2,1949.0,8.13083]
[1688358036449,0.02609508,1949.1,1949.0,8.13083]
[1688358036661,0.03468701,1949.2,1949.0,3.0]
[1688358037500,0.94011186,1949.1,1948.9,0.41940504]
[1688358037801,5.17675233,1949.0,1948.6,5.1317]
[1688358038096,5.17675233,1949.0,1948.5,5.132]
[1688358038303,5.17675233,1949.0,1948.5,10.26404]
[1688358038451,11.23058233,1949.0,1948.5,5.132]
[1688358038954,6.09975233,1949.0,1948.6,8.13183]
[1688358039397,0.96892233,1949.0,1948.6,13.26371]
[1688358040579,0.96892233,1949.0,1948.6,15.82965]
[1688358041757,0.96892233,1948.8,1948.6,3.0]
[1688358041960,0.96892233,1948.8,1948.6,8.1318]
[1688358042498,0.96892233,1948.8,1948.6,13.26368]
[1688358043497,0.04592233,1948.8,1948.6,13.26368]
[1688358043706,0.04592233,1948.8,1948.6,15.82962]
[1688358044199,0.96892233,1948.9,1948.6,15.82962]
[1688358045598,15.43246049,1948.9,1948.5,0.40414757]
[1688358045757,7.69027816,1948.8,1948.5,0.40414757]
[1688358045969,0.03028135,1948.7,1948.4,10.26453]
[1688358046557,0.95328135,1948.7,1948.4,10.68193108]
[1688358046999,0.03028135,1948.7,1948.4,10.68193108]
[1688358048213,0.03028135,1948.7,1948.4,13.24813108]
[1688358051174,0.95328135,1948.7,1948.4,5.54961108]
[1688358051477,0.95328135,1948.7,1948.4,10.26462]
[1688358051892,0.03028135,1948.7,1948.4,10.26462]
[1688358056872,0.03028135,1948.7,1948.4,5.13221]
[1688358057474,0.03028135,1948.7,1948.3,10.11591254]
[1688358057687,6.10202321,1948.7,1948.3,10.67408254]
[1688358061380,5.17902321,1948.7,1948.3,10.67408254]
[1688358064330,5.14874186,1948.7,1948.3,10.67408254]
[1688358064475,5.17530674,1948.7,1948.3,10.67408254]
[1688358064675,5.14874186,1948.7,1948.3,10.67408254]
[1688358064876,5.17533774,1948.7,1948.3,10.67408254]
[1688358065212,5.14874186,1948.7,1948.3,10.67408254]
[1688358065425,5.17544339,1948.7,1948.3,10.67408254]
[1688358065721,5.17687499,1948.7,1948.3,10.67408254]